[Event "Late-Titled-Tuesday-Blitz-May-14-2024"]
[Site "Chess.com"]
[Date "2024.05.14"]
[Round "8"]
[White "FLamps8"]
[Black "MITerryble"]
[Result "0-1"]
[WhiteElo "2714"]
[BlackElo "3017"]
[TimeControl "180+1"]
[EndTime "15:27:25 PDT"]
[Termination "MITerryble won on time"]

1. d4 {[%clk 0:03:00.9]} 1... e6 {[%clk 0:03:00.1]} 2. Bf4 {[%clk 0:03:00]} 2...
Nf6 {[%clk 0:03:00.4]} 3. e3 {[%clk 0:02:59.6]} 3... b6 {[%clk 0:03:01]} 4. Nf3
{[%clk 0:02:56.1]} 4... Bb7 {[%clk 0:03:01.4]} 5. h3 {[%clk 0:02:56.5]} 5... Bd6
{[%clk 0:03:01.7]} 6. Be5 {[%clk 0:02:54.6]} 6... O-O {[%clk 0:02:59.9]} 7. Nbd2
{[%clk 0:02:50.4]} 7... Nc6 {[%clk 0:02:53.4]} 8. Bxd6 {[%clk 0:02:47.3]} 8...
cxd6 {[%clk 0:02:53.6]} 9. c3 {[%clk 0:02:35.5]} 9... d5 {[%clk 0:02:52.8]} 10.
Bd3 {[%clk 0:02:34.8]} 10... Ne7 {[%clk 0:02:53.2]} 11. O-O {[%clk 0:02:26.2]}
11... d6 {[%clk 0:02:50.8]} 12. Qb1 {[%clk 0:02:25.8]} 12... Ng6 {[%clk
0:02:50.8]} 13. e4 {[%clk 0:02:22.3]} 13... dxe4 {[%clk 0:02:48.3]} 14. Nxe4
{[%clk 0:02:22.1]} 14... Nf4 {[%clk 0:02:48.8]} 15. Nxf6+ {[%clk 0:02:13.4]}
15... Qxf6 {[%clk 0:02:49.7]} 16. Bxh7+ {[%clk 0:02:13.4]} 16... Kh8 {[%clk
0:02:48.8]} 17. Be4 {[%clk 0:02:14.3]} 17... d5 {[%clk 0:02:49.3]} 18. Bd3
{[%clk 0:01:53.6]} 18... Nxh3+ {[%clk 0:02:49.2]} 19. Kh2 {[%clk 0:01:21.4]}
19... Nf4 {[%clk 0:02:49.1]} 20. Rh1 {[%clk 0:01:00.4]} 20... g6 {[%clk
0:02:48]} 21. g3 {[%clk 0:00:59.9]} 21... Kg7 {[%clk 0:02:39.2]} 22. Kg1 {[%clk
0:00:44.3]} 22... Nh5 {[%clk 0:01:48.6]} 23. Ne5 {[%clk 0:00:40.5]} 23... Rh8
{[%clk 0:01:48.7]} 24. Kg2 {[%clk 0:00:33.6]} 24... Rh7 {[%clk 0:01:27]} 25. Qd1
{[%clk 0:00:30.6]} 25... Rah8 {[%clk 0:01:24.7]} 26. Qf3 {[%clk 0:00:29.5]}
26... Qe7 {[%clk 0:01:25]} 27. Rh4 {[%clk 0:00:20.5]} 27... Nf6 {[%clk
0:01:20.9]} 28. Rxh7+ {[%clk 0:00:18.8]} 28... Rxh7 {[%clk 0:01:21.8]} 29. Rh1
{[%clk 0:00:18.8]} 29... Rxh1 {[%clk 0:01:22.1]} 30. Kxh1 {[%clk 0:00:19.7]}
30... Ne4 {[%clk 0:01:22.9]} 31. Bxe4 {[%clk 0:00:16.9]} 31... dxe4 {[%clk
0:01:23.8]} 32. Qe3 {[%clk 0:00:16.9]} 32... f6 {[%clk 0:01:22.2]} 33. Nc4
{[%clk 0:00:16.9]} 33... Qd7 {[%clk 0:00:57.7]} 34. Nd2 {[%clk 0:00:15.4]} 34...
Qa4 {[%clk 0:00:57.8]} 35. Kh2 {[%clk 0:00:09.1]} 35... Qxa2 {[%clk 0:00:55.6]}
36. Nxe4 {[%clk 0:00:09]} 36... Qb1 {[%clk 0:00:56.1]} 37. f3 {[%clk 0:00:04.3]}
37... Qxb2+ {[%clk 0:00:56.4]} 38. Kh3 {[%clk 0:00:04.1]} 38... Qb1 {[%clk
0:00:56.9]} 39. Kh2 {[%clk 0:00:01.2]} 39... Qc2+ {[%clk 0:00:54.4]} 40. Kh3
{[%clk 0:00:01.2]} 40... g5 {[%clk 0:00:37.7]} 41. Nf2 {[%clk 0:00:01.7]} 41...
Bd5 {[%clk 0:00:33.7]} 42. g4 {[%clk 0:00:02.1]} 42... a5 {[%clk 0:00:31.9]} 43.
Kg3 {[%clk 0:00:02.6]} 43... Qh7 {[%clk 0:00:30]} 44. Ne4 {[%clk 0:00:02.7]}
44... a4 {[%clk 0:00:28.7]} 45. Nd2 {[%clk 0:00:02.3]} 45... Qh4+ {[%clk
0:00:28.1]} 46. Kg2 {[%clk 0:00:01.8]} 46... Qxg4+ {[%clk 0:00:29]} 47. Kf2
{[%clk 0:00:02.4]} 47... Qh4+ {[%clk 0:00:29.4]} 48. Ke2 {[%clk 0:00:02.6]}
48... Qh2+ {[%clk 0:00:29.3]} 49. Kd3 {[%clk 0:00:02.8]} 49... b5 {[%clk
0:00:28.5]} 0-1

[Event "Late-Titled-Tuesday-Blitz-May-14-2024"]
[Site "Chess.com"]
[Date "2024.05.14"]
[Round "8"]
[White "Mbneu"]
[Black "marik_spb"]
[Result "1-0"]
[WhiteElo "2278"]
[BlackElo "2495"]
[TimeControl "180+1"]
[EndTime "15:27:26 PDT"]
[Termination "Mbneu won by checkmate"]

1. d4 {[%clk 0:02:55.9]} 1... Nf6 {[%clk 0:02:49.9]} 2. c4 {[%clk 0:02:55.9]}
2... e6 {[%clk 0:02:49.5]} 3. Nc3 {[%clk 0:02:55.3]} 3... c5 {[%clk 0:02:44.8]}
4. d5 {[%clk 0:02:53.1]} 4... exd5 {[%clk 0:02:45.7]} 5. cxd5 {[%clk 0:02:53.4]}
5... d6 {[%clk 0:02:44.5]} 6. e4 {[%clk 0:02:53.8]} 6... g6 {[%clk 0:02:42.9]}
7. f4 {[%clk 0:02:54.1]} 7... Bg7 {[%clk 0:02:42.7]} 8. Nf3 {[%clk 0:02:53.8]}
8... O-O {[%clk 0:02:41.8]} 9. Be2 {[%clk 0:02:53.6]} 9... Re8 {[%clk
0:02:34.2]} 10. e5 {[%clk 0:02:53.4]} 10... dxe5 {[%clk 0:02:34]} 11. fxe5
{[%clk 0:02:54]} 11... Ng4 {[%clk 0:02:33.8]} 12. e6 {[%clk 0:02:54.1]} 12...
fxe6 {[%clk 0:02:33.6]} 13. Bg5 {[%clk 0:02:54.1]} 13... Qa5 {[%clk 0:02:31.7]}
14. O-O {[%clk 0:02:46.7]} 14... exd5 {[%clk 0:02:08.6]} 15. Nxd5 {[%clk
0:02:36.6]} 15... Nc6 {[%clk 0:02:06]} 16. h3 {[%clk 0:02:31.8]} 16... Nd4
{[%clk 0:02:01.5]} 17. Bc4 {[%clk 0:02:27.9]} 17... Be6 {[%clk 0:01:16.3]} 18.
hxg4 {[%clk 0:02:19.8]} 18... b5 {[%clk 0:01:16.4]} 19. b4 {[%clk 0:01:10.5]}
19... Nxf3+ {[%clk 0:00:49.6]} 20. Qxf3 {[%clk 0:00:59.8]} 20... cxb4 {[%clk
0:00:48.9]} 21. Bb3 {[%clk 0:00:55.9]} 21... Kh8 {[%clk 0:00:42.6]} 22. Bf6
{[%clk 0:00:49.7]} 22... Rg8 {[%clk 0:00:34.1]} 23. Qe4 {[%clk 0:00:36.9]} 23...
Qa6 {[%clk 0:00:28.3]} 24. Ne7 {[%clk 0:00:29.1]} 24... Bxb3 {[%clk 0:00:21.9]}
25. Nxg8 {[%clk 0:00:27.8]} 25... Bxg8 {[%clk 0:00:12.2]} 26. Bxg7+ {[%clk
0:00:27.2]} 26... Kxg7 {[%clk 0:00:13.1]} 27. Qe5+ {[%clk 0:00:25.5]} 27... Kh6
{[%clk 0:00:11.5]} 28. g5+ {[%clk 0:00:25.3]} 28... Kh5 {[%clk 0:00:11.2]} 29.
Rf3 {[%clk 0:00:21.8]} 29... Be6 {[%clk 0:00:10.1]} 30. Rf6 {[%clk 0:00:18.1]}
30... Re8 {[%clk 0:00:08.4]} 31. Re1 {[%clk 0:00:16.3]} 31... Qxa2 {[%clk
0:00:07.7]} 32. Rxe6 {[%clk 0:00:12.7]} 32... Rxe6 {[%clk 0:00:08.6]} 33. Qxe6
{[%clk 0:00:13]} 33... Qxe6 {[%clk 0:00:07.2]} 34. Rxe6 {[%clk 0:00:12.4]} 34...
a5 {[%clk 0:00:03.7]} 35. Re5 {[%clk 0:00:10.7]} 35... b3 {[%clk 0:00:02.5]} 36.
Rxb5 {[%clk 0:00:10.5]} 36... a4 {[%clk 0:00:03.2]} 37. Rb4 {[%clk 0:00:10.7]}
37... Kxg5 {[%clk 0:00:03.8]} 38. Rxa4 {[%clk 0:00:10.6]} 38... Kf5 {[%clk
0:00:04.3]} 39. Rb4 {[%clk 0:00:10.9]} 39... b2 {[%clk 0:00:05.2]} 40. Rxb2
{[%clk 0:00:11]} 40... g5 {[%clk 0:00:06.1]} 41. Rf2+ {[%clk 0:00:10.8]} 41...
Kg4 {[%clk 0:00:07]} 42. Ra2 {[%clk 0:00:10.5]} 42... h5 {[%clk 0:00:07.9]} 43.
Kf2 {[%clk 0:00:10.5]} 43... Kh4 {[%clk 0:00:08]} 44. Ra4+ {[%clk 0:00:11.1]}
44... g4 {[%clk 0:00:08.5]} 45. g3+ {[%clk 0:00:11.3]} 45... Kh3 {[%clk
0:00:08.9]} 46. Ra5 {[%clk 0:00:11.8]} 46... h4 {[%clk 0:00:09.5]} 47. Rh5
{[%clk 0:00:12.3]} 47... Kh2 {[%clk 0:00:10.1]} 48. Rxh4# {[%clk 0:00:12.9]} 1-0

[Event "Late-Titled-Tuesday-Blitz-May-14-2024"]
[Site "Chess.com"]
[Date "2024.05.14"]
[Round "8"]
[White "MuhittinBuker"]
[Black "Eloist"]
[Result "0-1"]
[WhiteElo "2230"]
[BlackElo "2434"]
[TimeControl "180+1"]
[EndTime "15:27:27 PDT"]
[Termination "Eloist won on time"]

1. d4 {[%clk 0:03:00.9]} 1... e6 {[%clk 0:02:59.8]} 2. c4 {[%clk 0:02:59.9]}
2... Nf6 {[%clk 0:02:59.9]} 3. Nc3 {[%clk 0:02:59.6]} 3... Bb4 {[%clk
0:02:59.4]} 4. e3 {[%clk 0:03:00.2]} 4... O-O {[%clk 0:02:58.5]} 5. Bd3 {[%clk
0:03:00.7]} 5... c5 {[%clk 0:02:58.2]} 6. Nf3 {[%clk 0:03:00.7]} 6... Bxc3+
{[%clk 0:02:57.5]} 7. bxc3 {[%clk 0:02:59.8]} 7... d6 {[%clk 0:02:58.4]} 8. O-O
{[%clk 0:02:59]} 8... Nc6 {[%clk 0:02:58.5]} 9. Qc2 {[%clk 0:02:36.1]} 9... e5
{[%clk 0:02:56.8]} 10. e4 {[%clk 0:02:35.6]} 10... Bg4 {[%clk 0:02:48.2]} 11.
dxe5 {[%clk 0:02:33.1]} 11... dxe5 {[%clk 0:02:41]} 12. Be2 {[%clk 0:02:31.6]}
12... Qe7 {[%clk 0:02:28.9]} 13. Bg5 {[%clk 0:02:12.1]} 13... h6 {[%clk
0:02:27]} 14. Bh4 {[%clk 0:02:11.7]} 14... Rad8 {[%clk 0:02:19.9]} 15. Rfd1
{[%clk 0:02:10.5]} 15... g5 {[%clk 0:02:02.4]} 16. Bg3 {[%clk 0:02:08.8]} 16...
Nh5 {[%clk 0:02:00.8]} 17. Rd5 {[%clk 0:02:05.8]} 17... Nf4 {[%clk 0:01:51.3]}
18. Rad1 {[%clk 0:01:55.8]} 18... Be6 {[%clk 0:01:38.1]} 19. Bf1 {[%clk
0:01:37.7]} 19... Bxd5 {[%clk 0:01:34.7]} 20. exd5 {[%clk 0:01:35.4]} 20... Nb8
{[%clk 0:01:31.8]} 21. Re1 {[%clk 0:01:29.5]} 21... f6 {[%clk 0:01:30.3]} 22.
Bxf4 {[%clk 0:01:21.7]} 22... gxf4 {[%clk 0:01:30.1]} 23. Nh4 {[%clk 0:01:20.9]}
23... Qh7 {[%clk 0:01:27.7]} 24. Bd3 {[%clk 0:01:17.9]} 24... Qg7 {[%clk
0:01:17.3]} 25. Bf5 {[%clk 0:01:08.7]} 25... Rfe8 {[%clk 0:00:39.6]} 26. Bg6
{[%clk 0:01:01.5]} 26... Kh8 {[%clk 0:00:28]} 27. Bxe8 {[%clk 0:00:57.6]} 27...
Rxe8 {[%clk 0:00:28.3]} 28. Nf5 {[%clk 0:00:50.5]} 28... Qg6 {[%clk 0:00:24.9]}
29. Qe4 {[%clk 0:00:44.9]} 29... Nd7 {[%clk 0:00:22.3]} 30. d6 {[%clk
0:00:26.8]} 30... Nb6 {[%clk 0:00:17.4]} 31. Qd3 {[%clk 0:00:18.9]} 31... Nxc4
{[%clk 0:00:15.5]} 32. Qxc4 {[%clk 0:00:16.2]} 32... Qxf5 {[%clk 0:00:15.6]} 33.
Qf7 {[%clk 0:00:15.7]} 33... Qe6 {[%clk 0:00:14.5]} 34. Qg6 {[%clk 0:00:11.3]}
34... f5 {[%clk 0:00:11.4]} 35. d7 {[%clk 0:00:07]} 35... Qxg6 {[%clk
0:00:11.1]} 36. dxe8=Q+ {[%clk 0:00:03.1]} 36... Qxe8 {[%clk 0:00:10.8]} 37. Rd1
{[%clk 0:00:02.4]} 37... e4 {[%clk 0:00:10.5]} 38. Kf1 {[%clk 0:00:01.9]} 38...
Kg7 {[%clk 0:00:10.1]} 39. Ke2 {[%clk 0:00:02]} 39... Kf6 {[%clk 0:00:10.1]} 40.
Rd6+ {[%clk 0:00:01.3]} 40... Ke5 {[%clk 0:00:09.9]} 41. Rxh6 {[%clk 0:00:01.3]}
41... Qb5+ {[%clk 0:00:09.7]} 0-1

[Event "Late-Titled-Tuesday-Blitz-May-14-2024"]
[Site "Chess.com"]
[Date "2024.05.14"]
[Round "8"]
[White "gabduschew"]
[Black "PawnEatingZombie"]
[Result "0-1"]
[WhiteElo "2359"]
[BlackElo "2312"]
[TimeControl "180+1"]
[EndTime "15:27:29 PDT"]
[Termination "PawnEatingZombie won by resignation"]

1. e4 {[%clk 0:03:00.9]} 1... c5 {[%clk 0:02:59.3]} 2. Nf3 {[%clk 0:03:00.6]}
2... Nc6 {[%clk 0:02:58.9]} 3. d4 {[%clk 0:03:01]} 3... cxd4 {[%clk 0:02:59.8]}
4. Nxd4 {[%clk 0:03:01.9]} 4... e5 {[%clk 0:02:59.9]} 5. Nb5 {[%clk 0:03:00.8]}
5... d6 {[%clk 0:03:00.2]} 6. c4 {[%clk 0:02:59.7]} 6... Be6 {[%clk 0:02:59]} 7.
N1c3 {[%clk 0:02:55.5]} 7... a6 {[%clk 0:02:58.8]} 8. Na3 {[%clk 0:02:54.3]}
8... g6 {[%clk 0:02:56.9]} 9. Be2 {[%clk 0:02:52.6]} 9... Bg7 {[%clk 0:02:57]}
10. O-O {[%clk 0:02:51.9]} 10... Nf6 {[%clk 0:02:55.8]} 11. Kh1 {[%clk
0:02:39.4]} 11... O-O {[%clk 0:02:54.8]} 12. f3 {[%clk 0:02:26.1]} 12... Nd4
{[%clk 0:02:53.1]} 13. Nd5 {[%clk 0:02:23]} 13... Nd7 {[%clk 0:02:37.5]} 14. Be3
{[%clk 0:02:02.1]} 14... Rc8 {[%clk 0:02:34.4]} 15. Rc1 {[%clk 0:01:56.3]} 15...
f5 {[%clk 0:02:14.2]} 16. Bxd4 {[%clk 0:01:47.4]} 16... exd4 {[%clk 0:02:13.1]}
17. Bd3 {[%clk 0:01:47.5]} 17... b5 {[%clk 0:01:46.5]} 18. cxb5 {[%clk 0:01:38]}
18... Rxc1 {[%clk 0:01:42.9]} 19. Qxc1 {[%clk 0:01:31.8]} 19... Nc5 {[%clk
0:01:35.5]} 20. Qd2 {[%clk 0:01:19.5]} 20... Bxd5 {[%clk 0:01:28.5]} 21. exd5
{[%clk 0:01:18]} 21... axb5 {[%clk 0:01:23.8]} 22. Bxb5 {[%clk 0:01:11.6]} 22...
Qb6 {[%clk 0:01:13.2]} 23. Bc6 {[%clk 0:00:56.3]} 23... Rb8 {[%clk 0:01:12.6]}
24. Nc4 {[%clk 0:00:54]} 24... Qa6 {[%clk 0:00:59]} 25. b3 {[%clk 0:00:50.7]}
25... Nxb3 {[%clk 0:00:22.7]} 26. axb3 {[%clk 0:00:43.3]} 26... Rxb3 {[%clk
0:00:23.6]} 27. Rc1 {[%clk 0:00:33]} 27... d3 {[%clk 0:00:23.4]} 28. Nxd6 {[%clk
0:00:20.6]} 28... Qa3 {[%clk 0:00:13.4]} 29. Qg5 {[%clk 0:00:12.4]} 29... h6
{[%clk 0:00:06.4]} 30. Qd8+ {[%clk 0:00:12.2]} 30... Kh7 {[%clk 0:00:06.8]} 31.
Rd1 {[%clk 0:00:11.7]} 31... d2 {[%clk 0:00:02.3]} 32. h4 {[%clk 0:00:11.2]}
32... Qc1 {[%clk 0:00:02.3]} 33. Rxc1 {[%clk 0:00:08.7]} 33... dxc1=Q+ {[%clk
0:00:02.2]} 34. Kh2 {[%clk 0:00:09.2]} 34... Rb1 {[%clk 0:00:02.3]} 35. Qe7
{[%clk 0:00:05.3]} 35... Qh1+ {[%clk 0:00:03.2]} 36. Kg3 {[%clk 0:00:05.9]}
36... Qe1+ {[%clk 0:00:03.2]} 37. Kh3 {[%clk 0:00:06.3]} 37... Qxe7 {[%clk
0:00:02.8]} 38. Nc4 {[%clk 0:00:03]} 38... Qd8 {[%clk 0:00:02.5]} 39. d6 {[%clk
0:00:03.3]} 39... Rd1 {[%clk 0:00:02.4]} 40. d7 {[%clk 0:00:03.7]} 40... Rxd7
{[%clk 0:00:02.8]} 41. Bxd7 {[%clk 0:00:04.6]} 41... Qxd7 {[%clk 0:00:03.2]} 42.
g4 {[%clk 0:00:05.1]} 42... Qe7 {[%clk 0:00:03.7]} 43. Nd2 {[%clk 0:00:04.5]}
43... fxg4+ {[%clk 0:00:03.9]} 44. fxg4 {[%clk 0:00:04.8]} 44... Qe3+ {[%clk
0:00:04.4]} 0-1

[Event "Late-Titled-Tuesday-Blitz-May-14-2024"]
[Site "Chess.com"]
[Date "2024.05.14"]
[Round "8"]
[White "Crazy_girl99"]
[Black "yobdc"]
[Result "1-0"]
[WhiteElo "2639"]
[BlackElo "2504"]
[TimeControl "180+1"]
[EndTime "15:27:31 PDT"]
[Termination "Crazy_girl99 won by resignation"]

1. Nf3 {[%clk 0:02:57.6]} 1... Nf6 {[%clk 0:02:59.9]} 2. g3 {[%clk 0:02:57.8]}
2... g6 {[%clk 0:03:00.4]} 3. Bg2 {[%clk 0:02:58.4]} 3... Bg7 {[%clk 0:03:01.1]}
4. O-O {[%clk 0:02:59]} 4... O-O {[%clk 0:03:01.8]} 5. d4 {[%clk 0:02:59.5]}
5... d6 {[%clk 0:03:01.8]} 6. c4 {[%clk 0:02:59.8]} 6... Nc6 {[%clk 0:03:02.2]}
7. Nc3 {[%clk 0:03:00.4]} 7... e5 {[%clk 0:03:02.6]} 8. d5 {[%clk 0:03:00.2]}
8... Nb8 {[%clk 0:03:02.5]} 9. e4 {[%clk 0:03:00.8]} 9... a5 {[%clk 0:03:02.8]}
10. a3 {[%clk 0:02:59.4]} 10... Nbd7 {[%clk 0:02:57.4]} 11. Re1 {[%clk
0:02:57.9]} 11... Nc5 {[%clk 0:02:56.6]} 12. Qc2 {[%clk 0:02:58.1]} 12... a4
{[%clk 0:02:55.2]} 13. Rb1 {[%clk 0:02:58.3]} 13... Bd7 {[%clk 0:02:53.8]} 14.
Be3 {[%clk 0:02:58.3]} 14... b6 {[%clk 0:02:50.8]} 15. h3 {[%clk 0:02:55.1]}
15... h6 {[%clk 0:02:47.2]} 16. Nd2 {[%clk 0:02:53.6]} 16... Nh5 {[%clk
0:02:36.9]} 17. Rbd1 {[%clk 0:02:42.5]} 17... f5 {[%clk 0:02:36]} 18. exf5
{[%clk 0:02:36.5]} 18... gxf5 {[%clk 0:02:32.8]} 19. Nf3 {[%clk 0:02:28.6]}
19... f4 {[%clk 0:02:16.8]} 20. Bxc5 {[%clk 0:02:28.3]} 20... bxc5 {[%clk
0:02:17.2]} 21. g4 {[%clk 0:02:28.3]} 21... Nf6 {[%clk 0:02:16]} 22. Ne4 {[%clk
0:02:25]} 22... Be8 {[%clk 0:02:10.6]} 23. Nfd2 {[%clk 0:02:18.1]} 23... Bg6
{[%clk 0:02:03.8]} 24. Qc3 {[%clk 0:02:17.7]} 24... h5 {[%clk 0:01:49.9]} 25.
Bf3 {[%clk 0:02:17.3]} 25... hxg4 {[%clk 0:01:41.5]} 26. hxg4 {[%clk 0:02:11]}
26... Rb8 {[%clk 0:01:17.6]} 27. Kg2 {[%clk 0:02:00.1]} 27... Nxe4 {[%clk
0:01:04.8]} 28. Nxe4 {[%clk 0:01:51.6]} 28... Rb3 {[%clk 0:01:03.5]} 29. Qd2
{[%clk 0:01:44.6]} 29... Qb8 {[%clk 0:00:46.3]} 30. Rb1 {[%clk 0:01:26.5]} 30...
Qb6 {[%clk 0:00:37.2]} 31. Rh1 {[%clk 0:01:14.1]} 31... Rb8 {[%clk 0:00:30.4]}
32. Qd1 {[%clk 0:01:12.1]} 32... Qa7 {[%clk 0:00:13.9]} 33. g5 {[%clk
0:00:59.2]} 33... Rxf3 {[%clk 0:00:09.9]} 34. Qxf3 {[%clk 0:00:55.6]} 34... Rb3
{[%clk 0:00:10.1]} 35. Nc3 {[%clk 0:00:51]} 35... Qb8 {[%clk 0:00:10.1]} 36.
Rbe1 {[%clk 0:00:42.4]} 36... Qd8 {[%clk 0:00:10]} 37. Qg4 {[%clk 0:00:39.8]}
37... Rxb2 {[%clk 0:00:09.8]} 38. Ne4 {[%clk 0:00:30.7]} 38... Rb3 {[%clk
0:00:09.5]} 39. Nf6+ {[%clk 0:00:22.2]} 39... Kf8 {[%clk 0:00:09.9]} 40. Qe6
{[%clk 0:00:18.2]} 40... Bf7 {[%clk 0:00:08.7]} 41. Nd7+ {[%clk 0:00:15.6]}
41... Kg8 {[%clk 0:00:06.7]} 42. Qf5 {[%clk 0:00:15.5]} 42... Qe7 {[%clk
0:00:06.1]} 43. Nf6+ {[%clk 0:00:15.3]} 43... Kf8 {[%clk 0:00:06.1]} 44. Qc8+
{[%clk 0:00:15.1]} 44... Be8 {[%clk 0:00:06]} 45. Rh7 {[%clk 0:00:12.4]} 45...
f3+ {[%clk 0:00:05.4]} 46. Kg3 {[%clk 0:00:11]} 46... e4 {[%clk 0:00:05.2]} 47.
Rxe4 {[%clk 0:00:11.2]} 47... Bxf6 {[%clk 0:00:02.1]} 48. Rexe7 {[%clk
0:00:10.8]} 48... Bxe7 {[%clk 0:00:02.4]} 49. Rh8+ {[%clk 0:00:11.2]} 49... Kg7
{[%clk 0:00:02.8]} 50. Qxe8 {[%clk 0:00:11.6]} 1-0

[Event "Late-Titled-Tuesday-Blitz-May-14-2024"]
[Site "Chess.com"]
[Date "2024.05.14"]
[Round "8"]
[White "Chessdude1987"]
[Black "Romkachess"]
[Result "0-1"]
[WhiteElo "2388"]
[BlackElo "2592"]
[TimeControl "180+1"]
[EndTime "15:27:34 PDT"]
[Termination "Romkachess won on time"]

1. e4 {[%clk 0:03:00.9]} 1... c5 {[%clk 0:02:32]} 2. Nf3 {[%clk 0:03:00.2]} 2...
d6 {[%clk 0:02:22.7]} 3. Bc4 {[%clk 0:02:59.7]} 3... e6 {[%clk 0:02:15.9]} 4.
O-O {[%clk 0:02:57.6]} 4... Nf6 {[%clk 0:02:08.1]} 5. Re1 {[%clk 0:02:50.7]}
5... Be7 {[%clk 0:02:07.3]} 6. d3 {[%clk 0:02:43.6]} 6... O-O {[%clk 0:02:02.2]}
7. Bb3 {[%clk 0:02:43.1]} 7... Nc6 {[%clk 0:01:56.9]} 8. c3 {[%clk 0:02:43]}
8... b5 {[%clk 0:01:54.5]} 9. d4 {[%clk 0:02:43]} 9... Bb7 {[%clk 0:01:49.4]}
10. Nbd2 {[%clk 0:02:40.3]} 10... Rc8 {[%clk 0:01:46.6]} 11. Nf1 {[%clk
0:02:40.1]} 11... cxd4 {[%clk 0:01:23]} 12. cxd4 {[%clk 0:02:40]} 12... Qc7
{[%clk 0:01:17.9]} 13. d5 {[%clk 0:02:28]} 13... exd5 {[%clk 0:01:14.7]} 14.
exd5 {[%clk 0:02:26]} 14... Na5 {[%clk 0:01:14.2]} 15. Ne3 {[%clk 0:02:16]}
15... Nxb3 {[%clk 0:01:06.3]} 16. axb3 {[%clk 0:02:16]} 16... a6 {[%clk
0:00:58.4]} 17. Bd2 {[%clk 0:02:03.9]} 17... Rfe8 {[%clk 0:00:50.2]} 18. Bc3
{[%clk 0:01:49]} 18... Ne4 {[%clk 0:00:38.6]} 19. Bd4 {[%clk 0:01:27.9]} 19...
Bf6 {[%clk 0:00:33]} 20. Nf5 {[%clk 0:01:15.2]} 20... Bxd5 {[%clk 0:00:23.9]}
21. Rxa6 {[%clk 0:00:48]} 21... g6 {[%clk 0:00:06.7]} 22. Ra7 {[%clk 0:00:44.9]}
22... Qc6 {[%clk 0:00:03]} 23. Rxe4 {[%clk 0:00:39.7]} 23... Rxe4 {[%clk
0:00:01.8]} 24. Bxf6 {[%clk 0:00:23.1]} 24... gxf5 {[%clk 0:00:02.1]} 25. Ra1
{[%clk 0:00:16.1]} 25... Qc2 {[%clk 0:00:02.1]} 26. Qxd5 {[%clk 0:00:10.8]}
26... Qc1+ {[%clk 0:00:01.3]} 27. Qd1 {[%clk 0:00:10.8]} 27... Qxd1+ {[%clk
0:00:01.7]} 28. Rxd1 {[%clk 0:00:10.1]} 28... Re6 {[%clk 0:00:02.6]} 29. Bc3
{[%clk 0:00:07.8]} 29... h6 {[%clk 0:00:03.5]} 30. Nd4 {[%clk 0:00:06.5]} 30...
Re5 {[%clk 0:00:04.2]} 31. g3 {[%clk 0:00:03.8]} 31... Rd5 {[%clk 0:00:04.6]}
32. Rd2 {[%clk 0:00:01.3]} 32... b4 {[%clk 0:00:03.7]} 33. Bxb4 {[%clk
0:00:00.9]} 33... Rc1+ {[%clk 0:00:03.3]} 34. Kg2 {[%clk 0:00:00.7]} 34... Rb1
{[%clk 0:00:04.2]} 35. Bc3 {[%clk 0:00:00.7]} 35... f4 {[%clk 0:00:04.5]} 36. h3
{[%clk 0:00:01.2]} 36... f3+ {[%clk 0:00:05.3]} 37. Kxf3 {[%clk 0:00:01.5]}
37... f6 {[%clk 0:00:06.2]} 38. Ke4 {[%clk 0:00:01.6]} 38... Re5+ {[%clk
0:00:06.8]} 39. Kf4 {[%clk 0:00:01.6]} 39... Kf7 {[%clk 0:00:07.2]} 40. Kf3
{[%clk 0:00:01.6]} 40... Rd5 {[%clk 0:00:07.1]} 41. Nc2 {[%clk 0:00:01.1]} 41...
Rxd2 {[%clk 0:00:06.8]} 42. Bxd2 {[%clk 0:00:01.3]} 42... Rxb2 {[%clk
0:00:07.7]} 43. Ne3 {[%clk 0:00:00.8]} 43... Rxd2 {[%clk 0:00:07.7]} 44. Ng4
{[%clk 0:00:00.7]} 44... Rb2 {[%clk 0:00:08]} 45. Nxh6+ {[%clk 0:00:00.7]} 45...
Kg6 {[%clk 0:00:08.7]} 46. Ng4 {[%clk 0:00:00.3]} 46... Rxb3+ {[%clk 0:00:09.6]}
47. Ne3 {[%clk 0:00:00.4]} 47... d5 {[%clk 0:00:09.7]} 48. Ke2 {[%clk
0:00:00.2]} 48... d4 {[%clk 0:00:10.2]} 0-1